fUSD/lending_fUSD_20240925
["ID","MTS","AMOUNT","RATE_DAILY","PERIOD"]
[339164771,1727272247320,-500.0,0.00012894,2]
[339164772,1727272247329,-3683.73,0.00012894,2]
[339164773,1727272247339,-500.0,0.00012894,2]
[339164774,1727272247348,-500.75828182,0.00012894,2]
[339164775,1727272247357,-500.0,0.00012894,2]
[339164776,1727272247367,-542.44092172,0.00012894,2]
[339164777,1727272247377,-1624.44,0.00012894,2]
[339164778,1727272247386,-500.0,0.00012894,2]
[339164779,1727272247395,-500.0,0.00012894,2]
[339164780,1727272247404,-526.22,0.00012894,2]
[339164781,1727272247413,-878.73,0.00012894,2]
[339164782,1727272247422,-500.0,0.00012894,2]
[339164783,1727272247431,-500.0,0.00012894,2]
[339164784,1727272247441,-700.56,0.00012894,2]
[339164785,1727272247451,-500.0,0.00012894,2]
[339164786,1727272247460,-500.0,0.00012894,2]
[339164787,1727272247470,-256.84301253,0.00012894,2]
[339164788,1727272247479,-500.0,0.00012894,2]
[339164789,1727272247488,-686.83,0.00012894,2]
[339164790,1727272247498,-931.85,0.00012894,2]
[339164791,1727272247507,-500.0,0.00012894,2]
[339164792,1727272247517,-1974.8,0.00012894,2]
[339164793,1727272247527,-790.29,0.00012894,2]
[339164794,1727272247537,-572.59,0.00012894,2]
[339164795,1727272247549,-522.47,0.00012894,2]
[339164796,1727272247559,-574.93821443,0.00012894,2]
[339164797,1727272247568,-943.27,0.00012894,2]
[339164798,1727272247577,-728.83,0.00012894,2]
[339164799,1727272247587,-500.0,0.00012894,2]
[339164800,1727272247596,-500.0,0.00012894,2]
[339164801,1727272247606,-500.0,0.00012894,2]
[339164802,1727272247616,-1101.59,0.00012894,2]
[339164803,1727272247627,-500.0,0.00012894,2]
[339164804,1727272247637,-500.0,0.00012894,2]
[339164805,1727272247646,-500.0,0.00012894,2]
[339164806,1727272247655,-1650.47,0.00012894,2]
[339164807,1727272247664,-500.0,0.00012894,2]
[339164808,1727272247674,-500.0,0.00012894,2]
[339164809,1727272247683,-500.0,0.00012894,2]
[339164810,1727272247693,-500.0,0.00012894,2]
[339164811,1727272247703,-1097.21,0.00012894,2]
[339164812,1727272247712,-752.97,0.00012894,2]
[339164813,1727272247721,-500.0,0.00012894,2]
[339164814,1727272247731,-500.0,0.00012894,2]
[339164815,1727272247741,-500.0,0.00012894,2]
[339164816,1727272247750,-500.0,0.00012894,2]
[339164817,1727272247760,-513.75,0.00012894,2]
[339164818,1727272247770,-4367.79,0.00012894,2]
[339164819,1727272247780,-1302.59,0.00012894,2]
[339164820,1727272247789,-500.0,0.00012894,2]
[339164821,1727272247798,-608.99,0.00012894,2]
[339164822,1727272247807,-948.12,0.00012894,2]
[339164823,1727272247817,-550.62,0.00012894,2]
[339164824,1727272247827,-500.0,0.00012894,2]
[339164825,1727272247836,-500.0,0.00012894,2]
[339164826,1727272247846,-500.0,0.00012894,2]
[339164827,1727272247855,-946.26,0.00012894,2]
[339164828,1727272247865,-500.0,0.00012894,2]
[339164829,1727272247875,-500.0,0.00012894,2]
[339164830,1727272247884,-500.7298397,0.00012894,2]
[339164831,1727272247894,-500.0,0.00012895,2]
[339164832,1727272247904,-500.0,0.00012895,2]
[339164833,1727272247914,-500.0,0.00012895,2]
[339164834,1727272247924,-500.0,0.00012895,2]
[339164835,1727272247934,-500.0,0.00012895,2]
[339164836,1727272247943,-500.0,0.00012895,2]
[339164837,1727272247953,-587.43959665,0.00012895,2]
[339164838,1727272247963,-500.43607205,0.00012895,2]
[339164839,1727272247973,-500.0,0.00012895,2]
[339164840,1727272247983,-500.0,0.00012895,2]
[339164841,1727272247993,-500.0,0.00012895,2]
[339164842,1727272248002,-500.0,0.00012895,2]
[339164843,1727272248013,-500.0,0.00012895,2]
[339164844,1727272248024,-500.0,0.00012895,2]
[339164845,1727272248034,-500.0,0.00012895,2]
[339164846,1727272248044,-500.0,0.00012895,2]
[339164847,1727272248054,-500.0,0.00012895,2]
[339164848,1727272248064,-500.47629455,0.00012895,2]
[339164849,1727272248074,-500.0,0.00012895,2]
[339164850,1727272248083,-500.0,0.00012895,2]
[339164851,1727272248093,-500.0,0.00012895,2]
[339164852,1727272248103,-500.0,0.00012895,2]
[339164853,1727272248113,-500.0,0.00012895,2]
[339164854,1727272248122,-500.0,0.00012895,2]
[339164855,1727272248132,-500.0,0.00012895,2]
[339164856,1727272248142,-500.0,0.00012895,2]
[339164857,1727272248151,-500.0,0.00012895,2]
[339164858,1727272248161,-500.0,0.00012895,2]
[339164859,1727272248171,-500.0,0.00012895,2]
[339164860,1727272248180,-500.0,0.00012895,2]
[339164861,1727272248189,-500.0,0.00012895,2]
[339164862,1727272248198,-516.83083266,0.00012895,2]
[339164863,1727272248206,-500.0,0.00012895,2]
[339164864,1727272248216,-500.0,0.00012895,2]
[339164865,1727272248226,-500.83184613,0.00012895,2]
[339164866,1727272248235,-533.77,0.00012895,2]
[339164867,1727272248244,-533.77,0.00012895,2]
[339164868,1727272248254,-500.0,0.00012895,2]
[339164869,1727272248267,-500.0,0.00012895,2]
[339164870,1727272248277,-500.0,0.00012895,2]
[339164871,1727272248287,-500.0,0.00012895,2]
[339164872,1727272248296,-500.0,0.00012895,2]
[339164873,1727272248306,-1984.38,0.00012895,2]
[339164874,1727272248316,-1360.34,0.00012895,2]
[339164875,1727272248326,-1360.34,0.00012895,2]
[339164876,1727272248335,-2280.36,0.00012895,2]
[339164877,1727272248345,-2280.36,0.00012895,2]
[339164878,1727272248354,-500.0,0.00012895,2]
[339164879,1727272248363,-500.0,0.00012895,2]
[339164880,1727272248373,-264.11369715,0.00012895,2]
[339164881,1727272248382,-500.0,0.00012895,2]
[339164882,1727272248393,-564.15585954,0.00012895,2]
[339164883,1727272248402,-1119.06,0.00012895,2]
[339164884,1727272248412,-1119.06,0.00012895,2]
[339164885,1727272248421,-649.30529437,0.00012895,2]
[339164886,1727272248431,-500.0,0.00012895,2]
[339164887,1727272248440,-500.0,0.00012895,2]
[339164888,1727272248450,-500.0,0.00012895,2]
[339164889,1727272248459,-500.0,0.00012895,2]
[339164890,1727272248469,-601.18411811,0.00012895,2]
[339164891,1727272248478,-585.24,0.00012895,2]
[339164892,1727272248488,-585.24,0.00012895,2]
[339164893,1727272248497,-500.0,0.00012895,2]
[339164894,1727272248507,-500.0,0.00012895,2]
[339164895,1727272248525,-500.0,0.00012895,2]
[339164896,1727272248535,-500.0,0.00012895,2]
[339164897,1727272248549,-500.0,0.00012895,2]
[339164898,1727272248559,-500.0,0.00012895,2]
[339164899,1727272248569,-500.0,0.00012895,2]
[339164900,1727272248579,-500.0,0.00012895,2]
[339164901,1727272248589,-733.81,0.00012895,2]
[339164902,1727272248598,-733.81,0.00012895,2]
[339164903,1727272248608,-1330.96,0.00012895,2]
[339164904,1727272248622,-1330.96,0.00012895,2]
[339164905,1727272248631,-1348.32,0.00012895,2]
[339164906,1727272248642,-1348.32,0.00012895,2]
[339164907,1727272248652,-617.31,0.00012895,2]
[339164908,1727272248814,-617.31,0.00012895,2]
[339164909,1727272248833,-500.0,0.00012895,2]
[339164910,1727272248843,-500.0,0.00012895,2]
[339164911,1727272248852,-1944.15,0.00012895,2]
[339164912,1727272248862,-1944.15,0.00012895,2]
[339164913,1727272248872,-500.0,0.00012895,2]
[339164914,1727272248882,-500.0,0.00012895,2]
[339164915,1727272248892,-500.0,0.00012895,2]
[339164916,1727272248902,-501.36935813,0.00012895,2]
[339164917,1727272248912,-500.0,0.00012895,2]
[339164918,1727272248922,-500.0,0.00012895,2]
[339164919,1727272248932,-502.39899705,0.00012895,2]
[339164920,1727272248942,-500.0,0.00012895,2]
[339164921,1727272248952,-759.56,0.00012895,2]
[339164922,1727272248961,-500.0,0.00012895,2]
[339164923,1727272248971,-507.46,0.00012895,2]
[339164924,1727272248980,-500.0,0.00012895,2]
[339164925,1727272248990,-501.39675803,0.00012895,2]
[339164926,1727272249000,-500.0,0.00012895,2]
[339164927,1727272249011,-500.0,0.00012895,2]
[339164928,1727272249021,-500.0,0.00012895,2]
[339164929,1727272249030,-500.0,0.00012895,2]
[339164930,1727272249040,-500.0,0.00012895,2]
[339164931,1727272249050,-509.45,0.00012895,2]
[339164932,1727272249059,-621.65,0.00012895,2]
[339164933,1727272249069,-500.0,0.00012895,2]
[339164934,1727272249078,-500.0,0.00012895,2]
[339164935,1727272249088,-500.0,0.00012895,2]
[339164936,1727272249098,-500.0,0.00012895,2]
[339164937,1727272249108,-975.12,0.00012895,2]
[339164938,1727272249117,-748.99,0.00012895,2]
[339164939,1727272249127,-500.0,0.00012895,2]
[339164940,1727272249136,-500.0,0.00012895,2]
[339164941,1727272249146,-500.0,0.00012895,2]
[339164942,1727272249155,-500.0,0.00012895,2]
[339164943,1727272249164,-500.0,0.00012895,2]
[339164944,1727272249174,-676.9,0.00012895,2]
[339164945,1727272249184,-878.73,0.00012895,2]
[339164946,1727272249193,-500.0,0.00012895,2]
[339164947,1727272249203,-500.0,0.00012895,2]
[339164948,1727272249212,-500.0,0.00012895,2]
[339164949,1727272249222,-500.0,0.00012895,2]
[339164950,1727272249231,-686.83,0.00012895,2]
[339164951,1727272249241,-500.0,0.00012895,2]
[339164952,1727272249250,-631.49,0.00012895,2]
[339164953,1727272249260,-500.0,0.00012895,2]
[339164954,1727272249269,-790.29,0.00012895,2]
[339164955,1727272249279,-589.86,0.00012895,2]
[339164956,1727272249288,-500.0,0.00012895,2]
[339164957,1727272249298,-500.0,0.00012895,2]
[339164958,1727272249308,-943.27,0.00012895,2]
[339164959,1727272249317,-500.0,0.00012895,2]
[339164960,1727272249327,-500.0,0.00012895,2]
[339164961,1727272249336,-502.42,0.00012895,2]
[339164962,1727272249346,-500.0,0.00012895,2]
[339164963,1727272249355,-500.0,0.00012895,2]
[339164964,1727272249365,-500.0,0.00012895,2]
[339164965,1727272249374,-500.0,0.00012895,2]
[339164966,1727272249383,-511.86076528,0.00012895,2]
[339164967,1727272249393,-500.0,0.00012895,2]
[339164968,1727272249402,-500.0,0.00012895,2]
[339164969,1727272249412,-1097.21,0.00012895,2]
[339164970,1727272249421,-500.0,0.00012895,2]
[339164971,1727272249431,-345.18165118,0.00012895,2]
[339164972,1727272249440,-500.0,0.00012895,2]
[339164973,1727272249450,-490.71488649,0.00012895,2]
[339164974,1727272249459,-500.0,0.00012895,2]
[339164975,1727272249468,-676.15,0.00012895,2]
[339164976,1727272249478,-500.0,0.00012895,2]
[339164977,1727272249487,-458.27917703,0.00012895,2]
[339164978,1727272249496,-4367.79,0.00012895,2]
[339164979,1727272249506,-500.0,0.00012895,2]
[339164980,1727272249517,-500.0,0.00012895,2]
[339164981,1727272249526,-1302.59,0.00012895,2]
[339164982,1727272249536,-500.0,0.00012895,2]
[339164983,1727272249549,-550.62,0.00012895,2]
[339164984,1727272249558,-500.0,0.00012895,2]
[339164985,1727272249568,-500.0,0.00012895,2]
[339164986,1727272249577,-500.0,0.00012895,2]
[339164987,1727272249587,-500.0,0.00012895,2]
[339164988,1727272249596,-500.0,0.00012895,2]
[339164989,1727272249606,-500.0,0.00012895,2]
[339164990,1727272249617,-500.0,0.00012895,2]
[339164991,1727272249626,-500.0,0.00012895,2]
[339164992,1727272249636,-500.0,0.00012895,2]
[339164993,1727272249645,-500.49051522,0.00012895,2]
[339164994,1727272249656,-500.0,0.00012895,2]
[339164995,1727272249666,-500.0,0.00012895,2]
[339164996,1727272249675,-430.54594815,0.00012896,2]
[339164997,1727272249685,-500.0,0.00012896,2]
[339164998,1727272249694,-500.0,0.00012896,2]
[339164999,1727272249704,-500.0,0.00012896,2]
[339165000,1727272249713,-500.0,0.00012896,2]
[339165001,1727272249723,-500.0,0.00012896,2]
[339165002,1727272249732,-500.0,0.00012896,2]
[339165003,1727272249742,-500.0,0.00012896,2]
[339165004,1727272249751,-500.0,0.00012896,2]
[339165005,1727272249762,-500.0,0.00012896,2]
[339165006,1727272249771,-500.0,0.00012896,2]
[339165007,1727272249781,-500.0,0.00012896,2]
[339165008,1727272249790,-500.0,0.00012896,2]
[339165009,1727272249800,-500.0,0.00012896,2]
[339165010,1727272249809,-500.0,0.00012896,2]
[339165011,1727272249818,-500.0,0.00012896,2]
[339165012,1727272249828,-500.0,0.00012896,2]
[339165013,1727272249838,-500.0,0.00012896,2]
[339165014,1727272249848,-500.0,0.00012896,2]
[339165015,1727272249858,-500.0,0.00012896,2]
[339165016,1727272249868,-634.69608336,0.00012896,2]
[339165017,1727272249877,-500.0,0.00012896,2]
[339165018,1727272249887,-272.08110798,0.00012896,2]
[339165019,1727272249896,-500.0,0.00012896,2]
[339165020,1727272249906,-500.0,0.00012896,2]
[339165021,1727272249915,-500.0,0.00012896,2]
[339165022,1727272249925,-602.68269918,0.00012896,2]
[339165023,1727272249934,-500.0,0.00012896,2]
[339165024,1727272249944,-500.0,0.00012896,2]
[339165025,1727272249953,-500.0,0.00012896,2]
[339165026,1727272249962,-500.0,0.00012896,2]
[339165027,1727272249971,-349.65,0.00012896,2]
[339165028,1727272249981,-533.77,0.00012896,2]
[339165029,1727272249990,-533.77,0.00012896,2]
[339165030,1727272249999,-500.0,0.00012896,2]
[339165031,1727272250010,-500.0,0.00012896,2]
[339165032,1727272250021,-500.0,0.00012896,2]
[339165033,1727272250030,-501.78387704,0.00012896,2]
[339165034,1727272250040,-500.0,0.00012896,2]
[339165035,1727272250049,-500.0,0.00012896,2]
[339165036,1727272250058,-500.0,0.00012896,2]
[339165037,1727272250069,-500.0,0.00012896,2]
[339165038,1727272250078,-1747.48,0.00012896,2]
[339165039,1727272250088,-500.0,0.00012896,2]
[339165040,1727272250098,-500.0,0.00012896,2]
[339165041,1727272250110,-500.0,0.00012896,2]
[339165042,1727272250119,-500.0,0.00012896,2]
[339165043,1727272250129,-577.78,0.00012896,2]
[339165044,1727272250137,-500.0,0.00012896,2]
[339165045,1727272250146,-500.0,0.00012896,2]
[339165046,1727272250156,-500.0,0.00012896,2]
[339165047,1727272250166,-500.0,0.00012896,2]
[339165048,1727272250175,-500.0,0.00012896,2]
[339165049,1727272250184,-500.0,0.00012896,2]
[339165050,1727272250193,-500.0,0.00012896,2]
[339165051,1727272250202,-500.0,0.00012896,2]
[339165052,1727272250211,-500.0,0.00012896,2]
[339165053,1727272250220,-500.0,0.00012896,2]
[339165054,1727272250229,-500.0,0.00012896,2]
[339165055,1727272250240,-1686.55,0.00012896,2]
[339165056,1727272250249,-615.3,0.00012896,2]
[339165057,1727272250259,-1984.38,0.00012896,2]
[339165058,1727272250269,-1984.38,0.00012896,2]
[339165059,1727272250277,-1984.38,0.00012896,2]
[339165060,1727272250286,-500.0,0.00012896,2]
[339165061,1727272250295,-500.0,0.00012896,2]
[339165062,1727272250304,-847.7,0.00012896,2]
[339165063,1727272250313,-500.0,0.00012896,2]
[339165064,1727272250322,-500.0,0.00012896,2]
[339165065,1727272250331,-1824.16,0.00012896,2]
[339165066,1727272250341,-500.0,0.00012896,2]
[339165067,1727272250350,-500.0,0.00012896,2]
[339165068,1727272250360,-1195.16,0.00012896,2]
[339165069,1727272250370,-1360.34,0.00012896,2]
[339165070,1727272250379,-1360.34,0.00012896,2]
[339165071,1727272250388,-1060.48,0.00012896,2]
[339165072,1727272250397,-500.0,0.00012896,2]
[339165073,1727272250407,-500.0,0.00012896,2]
[339165074,1727272250416,-1035.64,0.00012896,2]
[339165075,1727272250426,-2280.36,0.00012896,2]
[339165076,1727272250435,-2280.36,0.00012896,2]
[339165077,1727272250444,-500.0,0.00012896,2]
[339165078,1727272250453,-837.22,0.00012896,2]
[339165079,1727272250463,-500.0,0.00012896,2]
[339165080,1727272250472,-500.0,0.00012896,2]
[339165081,1727272250482,-500.0,0.00012896,2]
[339165082,1727272250491,-500.0,0.00012896,2]
[339165083,1727272250500,-500.0,0.00012896,2]
[339165084,1727272250511,-500.0,0.00012896,2]
[339165085,1727272250520,-1119.06,0.00012896,2]
[339165086,1727272250530,-1119.06,0.00012896,2]
[339165087,1727272250540,-500.0,0.00012896,2]
[339165088,1727272250551,-500.0,0.00012896,2]
[339165089,1727272250560,-500.0,0.00012896,2]
[339165090,1727272250570,-500.0,0.00012896,2]
[339165091,1727272250579,-500.0,0.00012896,2]
[339165092,1727272250589,-500.0,0.00012896,2]
[339165093,1727272250598,-585.24,0.00012896,2]
[339165094,1727272250607,-585.24,0.00012896,2]
[339165095,1727272250618,-500.0,0.00012896,2]
[339165096,1727272250627,-500.0,0.00012896,2]
[339165097,1727272250637,-500.0,0.00012896,2]
[339165098,1727272250646,-500.0,0.00012896,2]
[339165099,1727272250655,-500.0,0.00012896,2]
[339165100,1727272250665,-500.0,0.00012896,2]
[339165101,1727272250674,-500.0,0.00012896,2]
[339165102,1727272250684,-500.0,0.00012896,2]
[339165103,1727272250693,-733.81,0.00012896,2]
[339165104,1727272250703,-733.81,0.00012896,2]
[339165105,1727272250712,-1330.96,0.00012896,2]
[339165106,1727272250722,-1330.96,0.00012896,2]
[339165107,1727272250732,-1348.32,0.00012896,2]
[339165108,1727272250741,-1348.32,0.00012896,2]
[339165109,1727272250750,-617.31,0.00012896,2]
[339165110,1727272250761,-617.31,0.00012896,2]
[339165111,1727272250770,-500.0,0.00012896,2]
[339165112,1727272250779,-500.0,0.00012896,2]
[339165113,1727272250788,-1944.15,0.00012896,2]
[339165114,1727272250797,-1944.15,0.00012896,2]
[339165115,1727272250805,-500.0,0.00012896,2]
[339165116,1727272250815,-500.0,0.00012896,2]
[339165117,1727272250825,-527.75756181,0.00012896,2]
[339165118,1727272250834,-500.0,0.00012896,2]
[339165119,1727272250843,-500.78916082,0.00012896,2]
[339165120,1727272250852,-500.0,0.00012896,2]
[339165121,1727272250861,-501.28700957,0.00012896,2]
[339165122,1727272250870,-500.0,0.00012896,2]
[339165123,1727272250879,-500.0,0.00012896,2]
[339165124,1727272250889,-500.83947301,0.00012896,2]
[339165125,1727272250899,-500.0,0.00012896,2]
[339165126,1727272250909,-500.0,0.00012896,2]
[339165127,1727272250918,-500.0,0.00012896,2]
[339165128,1727272250927,-500.0,0.00012896,2]
[339165129,1727272250937,-500.0,0.00012896,2]
[339165130,1727272250947,-525.86,0.00012896,2]
[339165131,1727272250959,-500.0,0.00012896,2]
[339165132,1727272250970,-500.0,0.00012896,2]
[339165133,1727272250982,-500.0,0.00012896,2]
[339165134,1727272250991,-500.0,0.00012896,2]
[339165135,1727272251001,-500.0,0.00012896,2]
[339165136,1727272251012,-500.0,0.00012896,2]
[339165137,1727272251021,-1115.48,0.00012896,2]
[339165138,1727272251031,-502.60949658,0.00012896,2]
[339165139,1727272251041,-1603.71,0.00012896,2]
[339165140,1727272251050,-500.0,0.00012896,2]
[339165141,1727272251060,-507.46,0.00012896,2]
[339165142,1727272251069,-4761.95,0.00012896,2]
[339165143,1727272251078,-507.46,0.00012896,2]
[339165144,1727272251088,-507.46,0.00012896,2]
[339165145,1727272251098,-500.0,0.00012896,2]
[339165146,1727272251107,-500.0,0.00012896,2]
[339165147,1727272251117,-534.3,0.00012896,2]
[339165148,1727272251126,-1687.59,0.00012896,2]
[339165149,1727272251136,-500.0,0.00012896,2]
[339165150,1727272251145,-501.27327859,0.00012896,2]
[339165151,1727272251154,-7635.25,0.00012896,2]
[339165152,1727272251164,-3396.75,0.00012896,2]
[339165153,1727272251173,-656.79,0.00012896,2]
[339165154,1727272251183,-1773.14,0.00012896,2]
[339165155,1727272251192,-500.0,0.00012896,2]
[339165156,1727272251248,-500.0,0.00012896,2]
[339165157,1727272251257,-500.0,0.00012896,2]
[339165158,1727272251268,-500.0,0.00012896,2]
[339165159,1727272251276,-2483.47,0.00012896,2]
[339165160,1727272251286,-1040.35,0.00012896,2]
[339165161,1727272251295,-500.0,0.00012896,2]
[339165162,1727272251303,-355.01493068,0.00012896,2]
[339165163,1727272251312,-1009.81,0.00012896,2]
[339165164,1727272251321,-500.0,0.00012896,2]
[339165165,1727272251331,-500.0,0.00012896,2]
[339165166,1727272251340,-500.0,0.00012896,2]
[339165167,1727272251348,-500.0,0.00012896,2]
[339165168,1727272251358,-1255.18,0.00012896,2]
[339165169,1727272251366,-509.45,0.00012896,2]
[339165170,1727272251374,-509.45,0.00012896,2]
[339165171,1727272251382,-509.45,0.00012896,2]
[339165172,1727272251391,-5769.46,0.00012896,2]
[339165173,1727272251400,-621.65,0.00012896,2]
[339165174,1727272251409,-500.0,0.00012896,2]
[339165175,1727272251418,-500.0,0.00012896,2]
[339165176,1727272251427,-500.0,0.00012896,2]
[339165177,1727272251436,-500.0,0.00012896,2]
[339165178,1727272251445,-3688.82,0.00012896,2]
[339165179,1727272251454,-500.0,0.00012896,2]
[339165180,1727272251463,-500.0,0.00012896,2]
[339165181,1727272251471,-500.0,0.00012896,2]
[339165182,1727272251481,-500.0,0.00012896,2]
[339165183,1727272251490,-249.36,0.00012896,2]
[339165184,1727272251499,-500.0,0.00012896,2]
[339165185,1727272251508,-500.0,0.00012896,2]
[339165186,1727272251518,-3514.51,0.00012896,2]
[339165187,1727272251527,-500.0,0.00012896,2]
[339165188,1727272251536,-975.12,0.00012896,2]
[339165189,1727272251549,-4964.39,0.00012896,2]
[339165190,1727272251558,-748.99,0.00012896,2]
[339165191,1727272251567,-500.0,0.00012896,2]
[339165192,1727272251575,-317.6744286,0.00012896,2]
[339165193,1727272251586,-500.0,0.00012896,2]
[339165194,1727272251595,-500.0,0.00012896,2]
[339165195,1727272251604,-500.0,0.00012896,2]
[339165196,1727272251613,-500.0,0.00012896,2]
[339165197,1727272251624,-3683.73,0.00012896,2]
[339165198,1727272251634,-500.0,0.00012896,2]
[339165199,1727272251644,-500.0,0.00012896,2]
[339165200,1727272251653,-500.0,0.00012896,2]
[339165201,1727272251663,-1624.44,0.00012896,2]
[339165202,1727272251673,-500.0,0.00012896,2]
[339165203,1727272251683,-500.0,0.00012896,2]
[339165204,1727272251692,-526.22,0.00012896,2]
[339165205,1727272251701,-676.9,0.00012896,2]
[339165206,1727272251710,-878.73,0.00012896,2]
[339165207,1727272251719,-500.0,0.00012896,2]
[339165208,1727272251729,-500.0,0.00012896,2]
[339165209,1727272251738,-500.0,0.00012896,2]
[339165210,1727272251748,-500.0,0.00012896,2]
[339165211,1727272251757,-700.56,0.00012896,2]
[339165212,1727272251776,-500.0,0.00012896,2]
[339165213,1727272251785,-500.0,0.00012896,2]
[339165214,1727272251794,-500.0,0.00012896,2]
[339165215,1727272251804,-500.0,0.00012896,2]
[339165216,1727272251813,-500.0,0.00012896,2]
[339165217,1727272251822,-686.83,0.00012896,2]
[339165218,1727272251831,-631.49,0.00012896,2]
[339165219,1727272251840,-500.0,0.00012896,2]
[339165220,1727272251849,-931.85,0.00012896,2]
[339165221,1727272251859,-500.0,0.00012896,2]
[339165222,1727272251868,-1974.8,0.00012896,2]
[339165223,1727272251877,-790.29,0.00012896,2]
[339165224,1727272251887,-572.59,0.00012896,2]
[339165225,1727272251896,-522.47,0.00012896,2]
[339165226,1727272251905,-589.86,0.00012896,2]
[339165227,1727272251914,-500.0,0.00012896,2]
[339165228,1727272251923,-500.0,0.00012896,2]
[339165229,1727272251932,-943.27,0.00012896,2]
[339165230,1727272251942,-728.83,0.00012896,2]
[339165231,1727272251951,-500.0,0.00012896,2]
[339165232,1727272251960,-500.0,0.00012896,2]
[339165233,1727272251970,-500.0,0.00012896,2]
[339165234,1727272251979,-500.0,0.00012896,2]
[339165235,1727272251988,-502.42,0.00012896,2]
[339165236,1727272251997,-500.0,0.00012896,2]
[339165237,1727272252006,-500.0,0.00012896,2]
[339165238,1727272252021,-500.0,0.00012896,2]
[339165239,1727272252030,-1101.59,0.00012896,2]
[339165240,1727272252038,-500.0,0.00012896,2]
[339165241,1727272252047,-500.0,0.00012896,2]
[339165242,1727272252056,-304.2,0.00012896,2]
[339165243,1727272252065,-500.0,0.00012896,2]
[339165244,1727272252074,-1650.47,0.00012896,2]
[339165245,1727272252083,-500.0,0.00012896,2]
[339165246,1727272252092,-500.0,0.00012896,2]
[339165247,1727272252101,-500.0,0.00012896,2]
[339165248,1727272252110,-500.0,0.00012896,2]
[339165249,1727272252119,-1097.21,0.00012896,2]
[339165250,1727272252128,-500.0,0.00012896,2]
[339165251,1727272252137,-752.97,0.00012896,2]
[339165252,1727272252146,-500.0,0.00012896,2]
[339165253,1727272252155,-500.0,0.00012896,2]
[339165254,1727272252164,-500.0,0.00012896,2]
[339165255,1727272252173,-676.15,0.00012896,2]
[339165256,1727272252182,-173.52681473,0.00012896,2]
[339165257,1727272252191,-500.0,0.00012896,2]
[339165258,1727272252200,-513.75,0.00012896,2]
[339165259,1727272252209,-4367.79,0.00012896,2]
[339165260,1727272252218,-500.0,0.00012896,2]
[339165261,1727272252227,-500.0,0.00012896,2]
[339165262,1727272252236,-1302.59,0.00012896,2]
[339165263,1727272252245,-500.0,0.00012896,2]
[339165264,1727272252254,-500.0,0.00012896,2]
[339165265,1727272252265,-608.99,0.00012896,2]
[339165266,1727272252274,-948.12,0.00012896,2]
[339165267,1727272252283,-550.62,0.00012896,2]
[339165268,1727272252292,-500.0,0.00012896,2]
[339165269,1727272252302,-500.0,0.00012896,2]
[339165270,1727272252311,-500.0,0.00012896,2]